fUST/lending_fUST_20240521
["ID","MTS","AMOUNT","RATE_DAILY","PERIOD"]
[327626826,1716256289291,-500.0,0.00047397,53]
[327626827,1716256289300,-595.47974755,0.00047397,53]
[327626828,1716256289310,-500.0,0.00047397,53]
[327626829,1716256289319,-789.44,0.00047397,53]
[327626830,1716256289329,-540.7,0.00047397,53]
[327626831,1716256289338,-596.6,0.00047397,53]
[327626832,1716256289347,-500.0,0.00047397,53]
[327626833,1716256289356,-702.31,0.00047397,53]
[327626834,1716256289366,-985.17,0.00047397,53]
[327626835,1716256289375,-1198.71,0.00047397,53]
[327626836,1716256289384,-889.02,0.00047397,53]
[327626837,1716256289394,-698.24,0.00047397,53]
[327626838,1716256289490,-500.0,0.00047397,53]
[327626839,1716256289500,-676.37,0.00047397,53]
[327626840,1716256289510,-500.0,0.00047397,53]
[327626841,1716256289524,-724.9,0.00047397,53]
[327626842,1716256289533,-803.48,0.00047397,53]
[327626843,1716256289543,-381.30798148,0.00047397,53]
[327626844,1716256289552,-500.0,0.00047397,53]
[327626845,1716256289563,-820.9,0.00047397,53]
[327626846,1716256289572,-655.92,0.00047397,53]
[327626847,1716256289581,-500.0,0.00047397,53]
[327626848,1716256289591,-500.0,0.00047397,53]
[327626849,1716256289603,-500.0,0.00047397,53]
[327626850,1716256289612,-500.0,0.00047397,53]
[327626851,1716256289622,-671.89,0.00047397,53]
[327626852,1716256289631,-520.46,0.00047397,53]
[327626853,1716256289640,-723.43,0.00047397,53]
[327626854,1716256289649,-949.87,0.00047397,53]
[327626855,1716256289659,-500.0,0.00047397,53]
[327626856,1716256289668,-684.86,0.00047397,53]
[327626857,1716256289678,-778.84,0.00047397,53]
[327626858,1716256289686,-797.35,0.00047397,53]
[327626859,1716256289696,-723.49,0.00047397,53]
[327626860,1716256289705,-861.17,0.00047397,53]
[327626861,1716256289714,-994.81,0.00047397,53]
[327626862,1716256289723,-736.19,0.00047397,53]
[327626863,1716256289732,-585.89,0.00047397,53]
[327626864,1716256289741,-798.18,0.00047397,53]
[327626865,1716256289751,-706.53,0.00047397,53]
[327626866,1716256289761,-500.0,0.00047397,53]
[327626867,1716256289771,-526.95,0.00047397,53]
[327626868,1716256289780,-761.38,0.00047397,53]
[327626869,1716256289789,-699.03,0.00047397,53]
[327626870,1716256289798,-500.0,0.00047397,53]
[327626871,1716256289807,-668.01,0.00047397,53]
[327626872,1716256289816,-983.04,0.00047397,53]
[327626873,1716256289826,-500.0,0.00047397,53]
[327626874,1716256289836,-640.06,0.00047397,53]
[327626875,1716256289845,-557.05,0.00047397,53]
[327626876,1716256289854,-1324.9,0.00047397,53]
[327626877,1716256289863,-634.01,0.00047397,53]
[327626878,1716256289872,-512.82,0.00047397,53]
[327626879,1716256289882,-655.25,0.00047397,53]
[327626880,1716256289891,-500.0,0.00047397,53]
[327626881,1716256289900,-820.76,0.00047397,53]
[327626882,1716256289909,-500.0,0.00047397,53]
[327626883,1716256289919,-500.0,0.00047397,53]
[327626884,1716256289929,-1050.19,0.00047397,53]
[327626885,1716256289938,-500.0,0.00047397,53]
[327626886,1716256289947,-500.0,0.00047397,53]
[327626887,1716256289956,-500.0,0.00047397,53]
[327626888,1716256289965,-578.19,0.00047397,53]
[327626889,1716256289975,-500.0,0.00047397,14]
[327626890,1716256289984,-500.0,0.00047397,2]
[327626891,1716256289994,-868.84,0.00047397,53]
[327626892,1716256290003,-560.94,0.00047397,53]
[327626893,1716256290015,-500.0,0.00047397,53]
[327626894,1716256290024,-500.0,0.00047397,53]
[327626895,1716256290033,-3015.8,0.00047397,53]
[327626896,1716256290042,-500.0,0.00047397,120]
[327626897,1716256290051,-742.5,0.00047397,53]
[327626898,1716256290060,-1312.06,0.00047397,53]
[327626899,1716256290069,-672.9,0.00047397,53]
[327626900,1716256290078,-500.0,0.00047397,53]
[327626901,1716256290088,-1721.54,0.00047397,53]
[327626902,1716256290097,-537.17,0.00047397,53]
[327626903,1716256290106,-1288.56,0.00047397,53]
[327626904,1716256290115,-2966.04,0.00047397,53]
[327626905,1716256290125,-800.58,0.00047397,53]
[327626906,1716256290134,-519.32,0.00047397,53]
[327626907,1716256290143,-1101.76,0.00047397,53]
[327626908,1716256290152,-571.16,0.00047397,53]
[327626909,1716256290161,-3000.0,0.00047397,30]
[327626910,1716256290170,-500.0,0.00047397,53]
[327626911,1716256290180,-679.77,0.00047397,53]
[327626912,1716256290189,-3098.74,0.00047397,53]
[327626913,1716256290198,-573.79,0.00047397,53]
[327626914,1716256290208,-740.22,0.00047397,53]
[327626915,1716256290217,-500.0,0.00047397,53]
[327626916,1716256290225,-946.03,0.00047397,53]
[327626917,1716256290234,-520.3,0.00047397,53]
[327626918,1716256290244,-500.0,0.00047397,53]
[327626919,1716256290253,-683.12,0.00047397,53]
[327626920,1716256290264,-1857.09,0.00047397,53]
[327626921,1716256290274,-815.0,0.00047397,53]
[327626922,1716256290283,-500.0,0.00047397,53]
[327626923,1716256290292,-504.58,0.00047397,53]
[327626924,1716256290301,-725.35,0.00047397,53]
[327626925,1716256290311,-1095.12,0.00047397,53]
[327626926,1716256290320,-758.0,0.00047397,53]
[327626927,1716256290329,-10687.91,0.00047397,53]
[327626928,1716256290338,-3071.22,0.00047397,7]
[327626929,1716256290348,-1953.62,0.00047397,53]
[327626930,1716256290356,-621.32,0.00047397,53]
[327626931,1716256290366,-871.95,0.00047397,7]
[327626932,1716256290375,-500.0,0.00047397,53]
[327626933,1716256290384,-500.0,0.00047397,53]
[327626934,1716256290393,-500.0,0.00047397,53]
[327626935,1716256290402,-779.29,0.00047397,53]
[327626936,1716256290410,-711.26,0.00047397,53]
[327626937,1716256290420,-500.0,0.00047397,53]
[327626938,1716256290429,-702.98,0.00047397,53]
[327626939,1716256290438,-746.5,0.00047397,53]
[327626940,1716256290447,-500.0,0.00047397,53]
[327626941,1716256290456,-4569.8,0.00047397,53]
[327626942,1716256290466,-558.71,0.00047397,53]
[327626943,1716256290476,-655.44,0.00047397,53]
[327626944,1716256290484,-979.85,0.00047397,53]
[327626945,1716256290493,-616.35,0.00047397,53]
[327626946,1716256290503,-500.0,0.00047397,53]
[327626947,1716256290514,-500.0,0.00047397,53]
[327626948,1716256290528,-860.47,0.00047397,53]
[327626949,1716256290538,-701.3,0.00047397,53]
[327626950,1716256290548,-500.0,0.00047397,53]
[327626951,1716256290558,-621.4,0.00047397,53]
[327626952,1716256290569,-5043.45,0.00047397,53]
[327626953,1716256290578,-500.0,0.00047397,53]
[327626954,1716256290588,-500.0,0.00047397,53]
[327626955,1716256290599,-680.66,0.00047397,53]
[327626956,1716256290608,-905.75,0.00047397,53]
[327626957,1716256290617,-668.38,0.00047397,53]
[327626958,1716256290626,-500.0,0.00047397,53]
[327626959,1716256290635,-4536.56,0.00047397,53]
[327626960,1716256290645,-960.25,0.00047397,53]
[327626961,1716256290654,-634.52,0.00047397,53]
[327626962,1716256290664,-530.04,0.00047397,53]
[327626963,1716256290673,-500.0,0.00047397,53]
[327626964,1716256290682,-500.0,0.00047397,53]
[327626965,1716256290692,-1213.79,0.00047397,53]
[327626966,1716256290702,-815.37,0.00047397,53]
[327626967,1716256290711,-697.34,0.00047397,53]
[327626968,1716256290720,-500.0,0.00047397,53]
[327626969,1716256290730,-500.0,0.00047397,20]
[327626970,1716256290740,-543.69,0.00047397,53]
[327626971,1716256290749,-704.21,0.00047397,53]
[327626972,1716256290760,-1357.0,0.00047397,53]
[327626973,1716256290770,-590.21,0.00047397,53]
[327626974,1716256290779,-4443.84,0.00047397,21]
[327626975,1716256290789,-568.3,0.00047397,53]
[327626976,1716256290798,-854.22,0.00047397,53]
[327626977,1716256290807,-603.81,0.00047397,53]
[327626978,1716256290817,-1298.13,0.00047397,53]
[327626979,1716256290826,-686.9,0.00047397,53]
[327626980,1716256290835,-1283.07,0.00047397,53]
[327626981,1716256290844,-500.0,0.00047397,53]
[327626982,1716256290854,-1928.09,0.00047397,53]
[327626983,1716256290863,-1521.93,0.00047397,53]
[327626984,1716256290872,-500.0,0.00047397,53]
[327626985,1716256290881,-500.0,0.00047397,53]
[327626986,1716256290891,-3265.34,0.00047397,53]
[327626987,1716256290900,-962.63,0.00047397,53]
[327626988,1716256290909,-500.0,0.00047397,53]
[327626989,1716256290918,-19738.08,0.00047397,53]
[327626990,1716256290927,-711.64,0.00047397,53]
[327626991,1716256290936,-2017.3,0.00047397,53]
[327626992,1716256290945,-1090.23,0.00047397,53]
[327626993,1716256290954,-500.0,0.00047397,53]
[327626994,1716256290963,-500.0,0.00047397,53]
[327626995,1716256290972,-774.07,0.00047397,53]
[327626996,1716256290982,-1090.8,0.00047397,53]
[327626997,1716256290991,-500.0,0.00047397,53]
[327626998,1716256291000,-2075.97,0.00047397,53]
[327626999,1716256291012,-695.68,0.00047397,53]
[327627000,1716256291021,-500.0,0.00047397,53]
[327627001,1716256291030,-846.21,0.00047397,53]
[327627002,1716256291040,-500.0,0.00047397,53]
[327627003,1716256291049,-295.085196,0.00047489,120]
[327627004,1716256291131,-500.0,0.00047671,54]
[327627005,1716256291147,-767.25,0.00047671,54]
[327627006,1716256291156,-500.0,0.00047671,54]
[327627007,1716256291165,-837.43,0.00047671,54]
[327627008,1716256291174,-650.81,0.00047671,54]
[327627009,1716256291183,-500.0,0.00047671,54]
[327627010,1716256291192,-597.94,0.00047671,54]
[327627011,1716256291201,-500.0,0.00047671,54]
[327627012,1716256291210,-500.0,0.00047671,54]
[327627013,1716256291219,-500.0,0.00047671,54]
[327627014,1716256291228,-559.54,0.00047671,54]
[327627015,1716256291237,-622.99,0.00047671,54]
[327627016,1716256291246,-500.0,0.00047671,54]
[327627017,1716256291255,-500.0,0.00047671,54]
[327627018,1716256291265,-500.0,0.00047671,54]
[327627019,1716256291274,-789.44,0.00047671,54]
[327627020,1716256291283,-540.7,0.00047671,54]
[327627021,1716256291292,-596.6,0.00047671,54]
[327627022,1716256291301,-500.0,0.00047671,54]
[327627023,1716256291311,-702.31,0.00047671,54]
[327627024,1716256291320,-985.17,0.00047671,54]
[327627025,1716256291329,-1198.71,0.00047671,54]
[327627026,1716256291339,-889.02,0.00047671,54]
[327627027,1716256291348,-698.24,0.00047671,54]
[327627028,1716256291358,-500.0,0.00047671,54]
[327627029,1716256291367,-676.37,0.00047671,54]
[327627030,1716256291376,-500.0,0.00047671,54]
[327627031,1716256291386,-724.9,0.00047671,54]
[327627032,1716256291395,-803.48,0.00047671,54]
[327627033,1716256291405,-500.0,0.00047671,54]
[327627034,1716256291414,-820.9,0.00047671,54]
[327627035,1716256291423,-655.92,0.00047671,54]
[327627036,1716256291433,-500.0,0.00047671,54]
[327627037,1716256291443,-452.07760285,0.00047671,54]
[327627038,1716256291452,-500.0,0.00047671,54]
[327627039,1716256291461,-500.0,0.00047671,54]
[327627040,1716256291470,-671.89,0.00047671,54]
[327627041,1716256291479,-520.46,0.00047671,54]
[327627042,1716256291488,-723.43,0.00047671,54]
[327627043,1716256291498,-949.87,0.00047671,54]
[327627044,1716256291508,-500.0,0.00047671,54]
[327627045,1716256291519,-684.86,0.00047671,54]
[327627046,1716256291531,-778.84,0.00047671,54]
[327627047,1716256291540,-797.35,0.00047671,54]
[327627048,1716256291549,-723.49,0.00047671,54]
[327627049,1716256291559,-861.17,0.00047671,54]
[327627050,1716256291569,-994.81,0.00047671,54]
[327627051,1716256291578,-736.19,0.00047671,54]
[327627052,1716256291587,-585.89,0.00047671,54]
[327627053,1716256291597,-798.18,0.00047671,54]
[327627054,1716256291607,-706.53,0.00047671,54]
[327627055,1716256291617,-500.0,0.00047671,54]
[327627056,1716256291627,-526.95,0.00047671,54]
[327627057,1716256291636,-761.38,0.00047671,54]
[327627058,1716256291645,-699.03,0.00047671,54]
[327627059,1716256291654,-500.0,0.00047671,54]
[327627060,1716256291664,-983.04,0.00047671,54]
[327627061,1716256291673,-668.01,0.00047671,54]
[327627062,1716256291682,-500.0,0.00047671,54]
[327627063,1716256291691,-640.06,0.00047671,54]
[327627064,1716256291700,-557.05,0.00047671,54]
[327627065,1716256291709,-1324.9,0.00047671,54]
[327627066,1716256291717,-634.01,0.00047671,54]
[327627067,1716256291727,-512.82,0.00047671,54]
[327627068,1716256291736,-655.25,0.00047671,54]
[327627069,1716256291745,-500.0,0.00047671,54]
[327627070,1716256291754,-820.76,0.00047671,54]
[327627071,1716256291765,-500.0,0.00047671,54]
[327627072,1716256291774,-500.0,0.00047671,54]
[327627073,1716256291783,-1050.19,0.00047671,54]
[327627074,1716256291792,-500.0,0.00047671,54]
[327627075,1716256291801,-176.14803535,0.00047671,54]
[327627076,1716256291810,-500.0,0.00047671,54]
[327627077,1716256291819,-578.19,0.00047671,54]
[327627078,1716256291828,-500.0,0.00047671,14]
[327627079,1716256291837,-500.0,0.00047671,2]
[327627080,1716256291846,-868.84,0.00047671,54]
[327627081,1716256291855,-560.94,0.00047671,54]
[327627082,1716256291864,-500.0,0.00047671,54]
[327627083,1716256291874,-500.0,0.00047671,54]
[327627084,1716256291883,-3015.8,0.00047671,54]
[327627085,1716256291892,-500.0,0.00047671,120]
[327627086,1716256291901,-742.5,0.00047671,54]
[327627087,1716256291910,-1312.06,0.00047671,54]
[327627088,1716256291919,-672.9,0.00047671,54]
[327627089,1716256291929,-500.0,0.00047671,54]
[327627090,1716256291939,-1721.54,0.00047671,54]
[327627091,1716256291948,-537.17,0.00047671,54]
[327627092,1716256291957,-1288.56,0.00047671,54]
[327627093,1716256291966,-2966.04,0.00047671,54]
[327627094,1716256291975,-800.58,0.00047671,54]
[327627095,1716256291985,-519.32,0.00047671,54]
[327627096,1716256291994,-1101.76,0.00047671,54]
[327627097,1716256292003,-571.16,0.00047671,54]
[327627098,1716256292013,-3000.0,0.00047671,30]
[327627099,1716256292022,-500.0,0.00047671,54]
[327627100,1716256292031,-679.77,0.00047671,54]
[327627101,1716256292040,-3098.74,0.00047671,54]
[327627102,1716256292049,-573.79,0.00047671,54]
[327627103,1716256292058,-740.22,0.00047671,54]
[327627104,1716256292067,-500.0,0.00047671,54]
[327627105,1716256292076,-946.03,0.00047671,54]
[327627106,1716256292085,-520.3,0.00047671,54]
[327627107,1716256292094,-500.0,0.00047671,54]
[327627108,1716256292104,-683.12,0.00047671,54]
[327627109,1716256292113,-1857.09,0.00047671,54]
[327627110,1716256292122,-815.0,0.00047671,54]
[327627111,1716256292131,-500.0,0.00047671,54]
[327627112,1716256292140,-504.58,0.00047671,54]
[327627113,1716256292149,-725.35,0.00047671,54]
[327627114,1716256292159,-1095.12,0.00047671,54]
[327627115,1716256292168,-758.0,0.00047671,54]
[327627116,1716256292176,-10687.91,0.00047671,54]
[327627117,1716256292185,-3071.22,0.00047671,7]
[327627118,1716256292194,-1953.62,0.00047671,54]
[327627119,1716256292203,-621.32,0.00047671,54]
[327627120,1716256292213,-871.95,0.00047671,7]
[327627121,1716256292222,-389.90721641,0.00047671,54]
[327627122,1716256292232,-500.0,0.00047671,54]
[327627123,1716256292241,-500.0,0.00047671,54]
[327627124,1716256292250,-779.29,0.00047671,54]
[327627125,1716256292261,-711.26,0.00047671,54]
[327627126,1716256292270,-500.0,0.00047671,54]
[327627127,1716256292279,-702.98,0.00047671,54]
[327627128,1716256292288,-746.5,0.00047671,54]
[327627129,1716256292297,-500.0,0.00047671,54]
[327627130,1716256292307,-4569.8,0.00047671,54]
[327627131,1716256292316,-558.71,0.00047671,54]
[327627132,1716256292326,-655.44,0.00047671,54]
[327627133,1716256292335,-979.85,0.00047671,54]
[327627134,1716256292344,-616.35,0.00047671,54]
[327627135,1716256292354,-500.0,0.00047671,54]
[327627136,1716256292363,-500.0,0.00047671,54]
[327627137,1716256292372,-860.47,0.00047671,54]
[327627138,1716256292382,-701.3,0.00047671,54]
[327627139,1716256292392,-500.0,0.00047671,54]
[327627140,1716256292401,-621.4,0.00047671,54]
[327627141,1716256292411,-5043.45,0.00047671,54]
[327627142,1716256292420,-500.0,0.00047671,54]
[327627143,1716256292429,-500.0,0.00047671,54]
[327627144,1716256292438,-680.66,0.00047671,54]
[327627145,1716256292447,-905.75,0.00047671,54]
[327627146,1716256292456,-668.38,0.00047671,54]
[327627147,1716256292466,-500.0,0.00047671,54]
[327627148,1716256292475,-4536.56,0.00047671,54]
[327627149,1716256292485,-960.25,0.00047671,54]
[327627150,1716256292494,-634.52,0.00047671,54]
[327627151,1716256292503,-500.0,0.00047671,54]
[327627152,1716256292516,-530.04,0.00047671,54]
[327627153,1716256292525,-500.0,0.00047671,54]
[327627154,1716256292540,-1213.79,0.00047671,54]
[327627155,1716256292549,-815.37,0.00047671,54]
[327627156,1716256292558,-697.34,0.00047671,54]
[327627157,1716256292567,-500.0,0.00047671,54]
[327627158,1716256292654,-500.0,0.00047671,20]
[327627159,1716256292664,-543.69,0.00047671,54]
[327627160,1716256292673,-704.21,0.00047671,54]
[327627161,1716256292682,-1357.0,0.00047671,54]
[327627162,1716256292691,-590.21,0.00047671,54]
[327627163,1716256292701,-4443.84,0.00047671,21]
[327627164,1716256292710,-568.3,0.00047671,54]
[327627165,1716256292720,-854.22,0.00047671,54]
[327627166,1716256292729,-603.81,0.00047671,54]
[327627167,1716256292739,-1298.13,0.00047671,54]
[327627168,1716256292748,-686.9,0.00047671,54]
[327627169,1716256292757,-1283.07,0.00047671,54]
[327627170,1716256292769,-399.57415879,0.00047671,54]
[327627171,1716256292779,-1928.09,0.00047671,54]
[327627172,1716256292788,-1521.93,0.00047671,54]
[327627173,1716256292797,-500.0,0.00047671,54]
[327627174,1716256292806,-500.0,0.00047671,54]
[327627175,1716256292815,-3265.34,0.00047671,54]
[327627176,1716256292824,-962.63,0.00047671,54]
[327627177,1716256292834,-500.0,0.00047671,54]
[327627178,1716256292844,-19738.08,0.00047671,54]
[327627179,1716256292853,-711.64,0.00047671,54]
[327627180,1716256292862,-2017.3,0.00047671,54]
[327627181,1716256292872,-1090.23,0.00047671,54]
[327627182,1716256292881,-287.05589229,0.00047671,54]
[327627183,1716256292891,-500.0,0.00047671,54]
[327627184,1716256292900,-774.07,0.00047671,54]
[327627185,1716256292910,-1090.8,0.00047671,54]
[327627186,1716256292919,-500.0,0.00047671,54]
[327627187,1716256292929,-2075.97,0.00047671,54]
[327627188,1716256292939,-695.68,0.00047671,54]
[327627189,1716256292948,-500.0,0.00047671,54]
[327627190,1716256292957,-846.21,0.00047671,54]
[327627191,1716256292967,-500.0,0.00047671,54]
[327627192,1716256292976,-204.4439737,0.00047753,2]
[327627193,1716256292985,-204.4439737,0.00047753,2]
[327627194,1716256292994,-204.4439737,0.00047753,2]
[327627195,1716256293004,-204.4439737,0.00047753,2]
[327627196,1716256293015,-204.4439737,0.00047753,2]
[327627197,1716256293024,-204.4439737,0.00047753,2]
[327627198,1716256293034,-204.4439737,0.00047753,2]
[327627199,1716256293043,-204.4439737,0.00047753,2]
[327627200,1716256293053,-204.4439737,0.00047753,2]
[327627201,1716256293063,-204.4439737,0.00047753,2]
[327627202,1716256293073,-204.4439736,0.00047753,2]
[327627203,1716256293082,-151.0,0.0004789,120]
[327627204,1716256293091,-500.0,0.00047945,55]
[327627205,1716256293100,-767.25,0.00047945,55]
[327627206,1716256293110,-500.0,0.00047945,55]
[327627207,1716256293119,-837.43,0.00047945,55]
[327627208,1716256293129,-650.81,0.00047945,55]
[327627209,1716256293138,-500.0,0.00047945,55]
[327627210,1716256293147,-597.94,0.00047945,55]
[327627211,1716256293157,-500.0,0.00047945,55]
[327627212,1716256293166,-500.0,0.00047945,55]
[327627213,1716256293175,-500.0,0.00047945,55]
[327627214,1716256293184,-559.54,0.00047945,55]
[327627215,1716256293193,-622.99,0.00047945,55]
[327627216,1716256293202,-367.42795191,0.00047945,55]
[327627217,1716256293212,-618.60463885,0.00047945,55]
[327627218,1716256293222,-500.0,0.00047945,55]
[327627219,1716256293231,-789.44,0.00047945,55]
[327627220,1716256293240,-540.7,0.00047945,55]
[327627221,1716256293250,-596.6,0.00047945,55]
[327627222,1716256293259,-500.0,0.00047945,55]
[327627223,1716256293269,-702.31,0.00047945,55]
[327627224,1716256293277,-985.17,0.00047945,55]
[327627225,1716256293286,-1198.71,0.00047945,55]
[327627226,1716256293296,-889.02,0.00047945,55]
[327627227,1716256293306,-698.24,0.00047945,55]
[327627228,1716256293315,-596.07653117,0.00047945,55]
[327627229,1716256293324,-676.37,0.00047945,55]
[327627230,1716256293334,-500.0,0.00047945,55]
[327627231,1716256293344,-724.9,0.00047945,55]
[327627232,1716256293353,-803.48,0.00047945,55]
[327627233,1716256293362,-500.0,0.00047945,55]
[327627234,1716256293372,-820.9,0.00047945,55]
[327627235,1716256293381,-655.92,0.00047945,55]
[327627236,1716256293390,-500.0,0.00047945,55]
[327627237,1716256293399,-500.0,0.00047945,55]
[327627238,1716256293409,-500.0,0.00047945,55]
[327627239,1716256293418,-671.89,0.00047945,55]
[327627240,1716256293427,-520.46,0.00047945,55]
[327627241,1716256293437,-723.43,0.00047945,55]
[327627242,1716256293446,-949.87,0.00047945,55]
[327627243,1716256293455,-500.0,0.00047945,55]
[327627244,1716256293464,-684.86,0.00047945,55]
[327627245,1716256293474,-778.84,0.00047945,55]
[327627246,1716256293483,-797.35,0.00047945,55]
[327627247,1716256293492,-723.49,0.00047945,55]
[327627248,1716256293501,-861.17,0.00047945,55]
[327627249,1716256293511,-994.81,0.00047945,55]
[327627250,1716256293524,-736.19,0.00047945,55]
[327627251,1716256293533,-585.89,0.00047945,55]
[327627252,1716256293542,-798.18,0.00047945,55]
[327627253,1716256293551,-706.53,0.00047945,55]
[327627254,1716256293562,-500.0,0.00047945,55]
[327627255,1716256293571,-526.95,0.00047945,55]
[327627256,1716256293580,-761.38,0.00047945,55]
[327627257,1716256293589,-699.03,0.00047945,55]
[327627258,1716256293600,-500.0,0.00047945,55]
[327627259,1716256293610,-668.01,0.00047945,55]
[327627260,1716256293619,-983.04,0.00047945,55]
[327627261,1716256293628,-500.0,0.00047945,55]
[327627262,1716256293637,-640.06,0.00047945,55]
[327627263,1716256293646,-557.05,0.00047945,55]
[327627264,1716256293656,-1324.9,0.00047945,55]
[327627265,1716256293665,-634.01,0.00047945,55]
[327627266,1716256293674,-512.82,0.00047945,55]
[327627267,1716256293683,-655.25,0.00047945,55]
[327627268,1716256293693,-500.0,0.00047945,55]
[327627269,1716256293703,-820.76,0.00047945,55]
[327627270,1716256293712,-500.0,0.00047945,55]
[327627271,1716256293721,-500.0,0.00047945,55]
[327627272,1716256293729,-1050.19,0.00047945,55]
[327627273,1716256293738,-500.0,0.00047945,55]
[327627274,1716256293747,-578.19,0.00047945,55]
[327627275,1716256293756,-500.0,0.00047945,55]
[327627276,1716256293768,-285.29436369,0.00047945,14]
[327627277,1716256293777,-500.0,0.00047945,2]
[327627278,1716256293786,-868.84,0.00047945,55]
[327627279,1716256293795,-560.94,0.00047945,55]
[327627280,1716256293804,-500.0,0.00047945,55]
[327627281,1716256293813,-500.0,0.00047945,55]
[327627282,1716256293822,-3015.8,0.00047945,55]
[327627283,1716256293831,-500.0,0.00047945,120]
[327627284,1716256293841,-742.5,0.00047945,55]
[327627285,1716256293850,-1312.06,0.00047945,55]
[327627286,1716256293859,-672.9,0.00047945,55]
[327627287,1716256293868,-500.0,0.00047945,55]
[327627288,1716256293877,-1721.54,0.00047945,55]
[327627289,1716256293886,-537.17,0.00047945,55]
[327627290,1716256293896,-1288.56,0.00047945,55]
[327627291,1716256293905,-2966.04,0.00047945,55]
[327627292,1716256293914,-800.58,0.00047945,55]
[327627293,1716256293923,-519.32,0.00047945,55]
[327627294,1716256293932,-1101.76,0.00047945,55]
[327627295,1716256293941,-571.16,0.00047945,55]
[327627296,1716256293950,-3000.0,0.00047945,30]
[327627297,1716256293959,-500.0,0.00047945,55]
[327627298,1716256293968,-679.77,0.00047945,55]
[327627299,1716256294051,-3098.74,0.00047945,55]
[327627300,1716256294062,-573.79,0.00047945,55]
[327627301,1716256294071,-740.22,0.00047945,55]
[327627302,1716256294080,-457.30962537,0.00047945,55]
[327627303,1716256294089,-946.03,0.00047945,55]
[327627304,1716256294098,-520.3,0.00047945,55]
[327627305,1716256294108,-363.25598764,0.00047945,55]
[327627306,1716256294117,-683.12,0.00047945,55]
[327627307,1716256294126,-1857.09,0.00047945,55]
[327627308,1716256294135,-815.0,0.00047945,55]
[327627309,1716256294145,-415.92783482,0.00047945,55]
[327627310,1716256294154,-504.58,0.00047945,55]
[327627311,1716256294164,-725.35,0.00047945,55]
[327627312,1716256294173,-1095.12,0.00047945,55]
[327627313,1716256294182,-758.0,0.00047945,55]
[327627314,1716256294192,-10687.91,0.00047945,55]
[327627315,1716256294201,-3071.22,0.00047945,7]
[327627316,1716256294210,-1953.62,0.00047945,55]
[327627317,1716256294219,-621.32,0.00047945,55]
[327627318,1716256294229,-871.95,0.00047945,7]
[327627319,1716256294238,-500.0,0.00047945,55]
[327627320,1716256294247,-500.0,0.00047945,55]
[327627321,1716256294256,-779.29,0.00047945,55]
[327627322,1716256294266,-711.26,0.00047945,55]
[327627323,1716256294275,-500.0,0.00047945,55]
[327627324,1716256294284,-702.98,0.00047945,55]
[327627325,1716256294293,-746.5,0.00047945,55]